Cogmind - Beta 14 @@@ ROGUE MODE // 2024.09.21 @ 00:37:11 Player: Dull Result: Destroyed by G-34 Mercenary with Small Laser Performance ------------- Evolutions (0) 0 Regions Visited (1) 200 Robots Destroyed (16) 80 Value Destroyed (330) 330 Prototype IDs (2) 40 Alien Tech Used (0) 0 Bonus (0) 0 TOTAL SCORE: 650 Bonus ------- None Cogmind --------- Core Integrity 0/250 Matter 271/300 Energy 100/100 System Corruption 7% Temperature Cool (6) Movement Core (300) Ox5 Location -10/Materials Parts ------- > --- POWER (1) -------- Ion Engine > --- PROPULSION (2) --- (None) > --- UTILITY (2) ------ Medium Storage Unit Visual Processing Unit > --- WEAPON (2) ------- Assault Rifle > --- INVENTORY (10) --- Light Ion Engine Light Treads Light Treads Wheel Signal Interpreter Signal Interpreter Improved Terrain Scanner Utility Shielding Medium Laser Peak State ------------ > --- POWER ------------ Light Ion Engine > --- PROPULSION ------- Aluminum Leg Aluminum Leg > --- UTILITY ---------- Small Storage Unit Improved Terrain Scanner > --- WEAPON ----------- Medium Laser Medium Laser > --- INVENTORY -------- Light Ion Engine Light Treads Light Treads Wheel Compact Wheel Small Laser [Rating: 9] Favorites ----------- Power Light Ion Engine Engine Light Ion Engine Propulsion Light Treads Treads Light Treads Leg Aluminum Leg Utility Medium Storage Unit Device Improved Terrain Scanner Storage Medium Storage Unit Processor Visual Processing Unit Weapon Medium Laser Energy Gun Medium Laser Ballistic Gun Assault Rifle Build | -11 -10 ------- Run | Yrd Mat Slots Evolved . | . . Power . | . . Propulsion . | . . Utility . | . . Weapon . | . . Parts Attached 9 | 3 6 Power 2 | . 2 Engine 2 | . 2 Core . | . . Reactor . | . . Propulsion 2 | 2 . Treads 2 | 2 . Leg . | . . Wheel . | . . Hover . | . . Flight . | . . Utility 3 | 1 2 Device 1 | 1 . Storage 1 | . 1 Processor 1 | . 1 Hackware . | . . Protection . | . . Artifact . | . . Weapon 2 | . 2 Energy Gun 1 | . 1 Energy Cannon . | . . Ballistic Gun 1 | . 1 Ballistic Cannon . | . . Launcher . | . . Special Weapon . | . . Impact Weapon . | . . Slashing Weapon . | . . Piercing Weapon . | . . Special Melee Weapon . | . . Unidentified Prototypes . | . . Parts Lost 4 | . 4 Power . | . . Propulsion 2 | . 2 Utility . | . . Weapon 2 | . 2 Highest Loss Streak 4 | . 4 To Critical Strikes . | . . Average Slot Usage (%) 99 | . 99 Engine 14 | . 14 Treads 27 | . 27 Device 4 | . 4 Storage 14 | . 14 Processor 9 | . 9 Energy Gun 19 | . 19 Ballistic Gun 8 | . 8 Peak Build Rating 9 | 9 9 Average Rating 8 | 6 8 On Entrance 7 | 6 9 Naked Turns . | . . Heaviest Build 19 | 13 19 Greatest Support 40 | 40 40 Greatest Overweight (x) . | . . Average Overweight (x) . | . . Largest Inventory Capacity 10 | 8 10 Average Capacity 9 | 8 9 Most Carried 10 | 6 10 Average Carried 8 | 5 8 Final Capacity 10 | 8 10 Final Carried 9 | 5 9 Class Distribution -------------------- 100% | Mutant Dominant Class ---------------- Mutant | -10/Materials Resources | -11 -10 ----------- Run | Yrd Mat Matter Collected 337 | 200 137 Remotely . | . . Salvage Created 510 | 101 409 Parts 32 | 5 27 Haulers Intercepted 1 | . 1 Recyclers Shooed 2 | 1 1 Parts Field Recycled . | . . Retrieved Matter . | . . Parts Self-Destructed . | . . Prevented . | . . Kills | -11 -10 ------- Run | Yrd Mat Combat Hostiles Destroyed 9 | . 9 Guns 9 | . 9 Classes Destroyed 6 | 2 4 Tunneler 2 | 2 . Hauler 1 | . 1 Recycler 1 | 1 . Watcher 3 | . 3 Swarmer 3 | . 3 Grunt 6 | . 6 Best Kill Streak 3 | 3 2 Combat Bots Only 2 | . 2 Max Kills in Single Turn 1 | 1 1 Gunslinging . | . . Exploded . | . . Melee . | . . Uniques/NPCs Destroyed . | . . Combat | -11 -10 -------- Run | Yrd Mat Hostile Shots Fired 111 | . 111 Missed 29 | . 29 Damage Taken 901 | . 901 Core 256 | . 256 Absorbed by Shields . | . . Core Remaining (%) 100 | 100 . Volleys Fired 53 | 9 44 Largest 2 | 2 2 Hottest 100 | 100 100 Shots Fired 106 | 18 88 Gun 106 | 18 88 Cannon . | . . Launcher . | . . Special . | . . Kinetic 32 | . 32 Thermal 74 | 18 56 Explosive . | . . Electromagnetic . | . . Robot Hit Streak 10 | 5 10 Robot Miss Streak 3 | 1 3 Penetration Max . | . . Secondary Targets 1 | . 1 Max Gunslinging Chain 1 | . 1 Shots Hit Robots 74 | 13 61 Core Hits 29 | 4 25 Critical Kills . | . . Critical Parts Destroyed . | . . Critical Strikes 3 | 1 2 Burn 3 | 1 2 Melee Attacks . | . . Impact . | . . Slashing . | . . Piercing . | . . Sneak Attacks . | . . Combat Hostiles . | . . Follow-up Attacks . | . . Damage Inflicted 965 | 174 791 Guns 955 | 174 781 Cannons . | . . Explosions . | . . Melee . | . . Ramming 10 | . 10 Kinetic 289 | . 289 Thermal 666 | 174 492 Explosive . | . . Electromagnetic . | . . Impact . | . . Slashing . | . . Piercing . | . . Highest Corruption 7 | . 7 Average Corruption 5 | . 5 Corruption Purged . | . . Corruption Blocked . | . . Overload Shots . | . . Overflow Damage . | . . Projectiles . | . . Explosions . | . . Melee . | . . Knockbacks . | . . Impact . | . . Kinetic . | . . Secondary . | . . Self-Inflicted Damage 10 | . 10 Shots . | . . Rammed . | . . Targets Rammed . | . . Kicked . | . . Crushed . | . . Highest Temperature 180 | 156 180 Average Temperature 41 | 55 38 Received Heat Transfer 345 | . 345 Siege Activations . | . . Robots Corrupted . | . . Combat Hostiles . | . . Parts Fried . | . . Impact Corruptions . | . . Robots Melted . | . . Combat Hostiles . | . . Parts Melted 3 | . 3 Heat Transferred 2183 | 592 1591 Parts Sabotaged . | . . Parts Stolen . | . . Parts Stripped . | . . Power Chain Reactions . | . . Alert | -11 -10 ------- Run | Yrd Mat Peak Influence 234 | 15 234 Initial 9 | . 9 Average 75 | 6 82 Maximum Alert Level 1 | . 1 Low Security (%) 97 | 100 97 Level 1 2 | . 2 Level 2 . | . . Level 3 . | . . Level 4 . | . . Level 5 . | . . High Security . | . . Max Security . | . . Squads Dispatched 3 | . 3 Investigation 1 | . 1 Extermination . | . . Reinforcement 2 | . 2 Assault . | . . Garrison . | . . Intercept . | . . Searches Triggered . | . . Construction Impeded . | . . Haulers Reinforced . | . . Active Scanning Responses . | . . Cargo Convoy Interrupts . | . . Stealth | -11 -10 --------- Run | Yrd Mat Distress Signals . | . . Communications Jammed . | . . Distress Signals . | . . Times Spotted 19 | . 19 Peak Tracking Total 4 | . 4 Tactical Retreats 2 | . 2 Traps | -11 -10 ------- Run | Yrd Mat Traps Triggered 1 | . 1 Indirectly . | . . Trap Hack Attempts . | . . Triggered . | . . Disarmed . | . . Reprogrammed . | . . Reused . | . . Traps Extracted . | . . Installed . | . . Triggered . | . . Machines | -11 -10 ---------- Run | Yrd Mat Machines Disabled . | . . Max in Single Turn . | . . Machines Repaired . | . . Machines Dismantled . | . . Machines Sabotaged . | . . Overloaded Fab Kills . | . . Hacking | -11 -10 --------- Run | Yrd Mat Machines Accessed 6 | . 6 Terminals 5 | . 5 Fabricators . | . . Repair Stations . | . . Recycling Units 1 | . 1 Scanalyzers . | . . Garrison Access . | . . Total Hacks 20 | . 20 Successful 11 | . 11 Failed 8 | . 8 Catastrophic 1 | . 1 Database Lockouts 1 | . 1 Manual 12 | . 12 Terminals 18 | . 18 Fabricators . | . . Repair Stations . | . . Recycling Units 2 | . 2 Scanalyzers . | . . Garrison Access . | . . Terminal Hacks 6 | . 6 Robot Analysis 3 | . 3 Prototype ID Bank 1 | . 1 Unreport Threat 2 | . 2 Fabricator Hacks . | . . Repair Station Hacks . | . . Recycling Unit Hacks . | . . Scanalyzer . | . . Garrison Access Hacks . | . . Unauthorized Hacks 5 | . 5 Terminals 3 | . 3 Botnet 3 | . 3 Fabricators . | . . Repair Stations . | . . Recycling Units 2 | . 2 Reject 1 | . 1 Mask 1 | . 1 Scanalyzers . | . . Garrison Access . | . . Data Cores Recovered . | . . Used . | . . Hacking Detections 3 | . 3 Full Trace Events . | . . Feedback Events . | . . Feedback Blocked . | . . Robot Schematics Acquired . | . . Robots Built . | . . Authchips . | . . Time . | . . Total Robot Build Rating . | . . Part Schematics Acquired . | . . Parts Built . | . . Authchips . | . . Time . | . . Total Part Build Rating . | . . Parts Repaired . | . . Time . | . . Parts Recycled . | . . Recycled Matter . | . . Retrieved Matter . | . . Retrieved Components . | . . Parts Scanalyzed . | . . Part Schematics Acquired . | . . Parts Damaged . | . . Bothacking | -11 -10 ------------ Run | Yrd Mat Used RIF Installer . | . . Robots Hacked . | . . Non-combat . | . . Combat . | . . Robot Hacks Applied . | . . Relay Couplers Released . | . . Fabnet Peak Effective % . | . . Robots Rewired . | . . Allies Hacked . | . . Hacks Repelled . | . . Allies | -11 -10 -------- Run | Yrd Mat Total Allies . | . . Largest Group . | . . Highest-Rated Group . | . . Highest-Rated Ally . | . . Total Orders . | . . Ally Attacks . | . . Total Damage . | . . Kills . | . . Allies Corrupted . | . . Allies Melted . | . . Intel | -11 -10 ------- Run | Yrd Mat Robot Analysis Total 3 | . 3 Derelict Logs Recovered . | . . Drone Launches . | . . Drone Recoveries . | . . Exploration | -11 -10 ------------- Run | Yrd Mat Turns Passed 813 | 74 739 Spaces Moved 383 | 36 347 Core . | . . Treads 348 | 1 347 Legs 35 | 35 . Wheels . | . . Hover . | . . Flight . | . . Fastest Speed 120 | 120 160 Average Speed 156 | 121 160 Slowest Speed 160 | 160 160 Overloaded Moves . | . . Propulsion Burnouts . | . . Robots Hopped . | . . Cave-ins Triggered . | . . Exploration Rate (%) 39 | 3 76 Regions Visited 1 Branch Regions . Pre-discovered Areas . | . . Known Exits Taken . | . . Unknown Exits Taken 1 | 1 . Scrap Searched . | . . Spaces Dug . | . . Terrain Destroyed . | . . Melee . | . . Projectile . | . . AOE . | . . Terrain Rammed 6 | . 6 Walls Destroyed . | . . Machines Disabled . | . . Actions | -11 -10 --------- Run | Yrd Mat Total 484 | 48 436 Wait 17 | . 17 Move 382 | 35 347 Hop . | . . Pick Up 9 | . 9 Fast Attach 1 | 1 . Attach 1 | . 1 Detach . | . . Swap 7 | 2 5 Drop 8 | 1 7 Fire 53 | 9 44 Melee . | . . Ram 6 | . 6 Kick . | . . Crush . | . . Escape Stasis . | . . Rewire . | . . Trap . | . . Miscellaneous . | . . Route ------- -11/Scrapyard -10/Materials (discovered 2 exits: [*Mat x2]) History --------- Turn | Location | Event 1 | -11/Scrapyard | Discovered new exit (range 2) 75 | -11/Scrapyard | Entered Materials 271 | -10/Materials | Discovered new exit (range 3) 321 | -10/Materials | Build established: Mutant 373 | -10/Materials | Central database locked down 435 | -10/Materials | Discovered new exit (range 5) 800 | -10/Materials | Core integrity fell below 50% 811 | -10/Materials | Core integrity fell below 20% 814 | -10/Materials | Destroyed by G-34 Mercenary with Small Laser Last Messages --------------- 00801_ Destabilizing: Short circuit. 00802_ Lgt. Treads destroyed. 00802_ Slammed into Wall. 00802_ Destabilizing: Core damaged (-2). 00802_ Destabilizing: Core damaged (-5). 00806_ Slammed into Wall. 00806_ Destabilizing: Core damaged (-5). 00806_ Med. Laser broken. 00806_ Destabilizing: Short circuit. 00808_ Broken Med. Laser destroyed. 00809_ Slammed into Wall. 00809_ Destabilizing: System corrupted (+2). 00809_ Destabilizing: Core damaged (-2). 00810_ M-13 Machinist repairs G-34 Mercenary. 00811_ K-01 Serf collects debris. 00812_ Slammed into Wall. 00812_ Destabilizing: System interference. 00812_ Visual Processing Unit temporarily disabled. 00812_ Destabilizing: Core damaged (-10). 00812_ R-06 Scavenger inserts Signal Interpreter into recycling unit. Map ----- +----------------------------------------------------+ | | | | | | | | | | | ???????????????????????????????????????????????? | | ???????????????????????????????????????????????? | | ???????????????????????????????????????????????? | | ?????????????????????????? ????????????????????? | | ?????????????????????????? ????????????????????? | | ?????????????????????????? ????????????????????? | | ?????????????????????????? ????????????????????? | | ?????????????????????????? ????????????????????? | | ????????????????????????##+##??????? ??????????? | | ???????????????????????? #??????? ??????????? | | ???????????????????????? #??????? #?????????? | | ???????????????????????? #??????? ####??????? | | ????????????????????????# #??????? #??????? | | ????????????????????????# % #??????? ######?? | | ????????????????????????# [ ######## #?? | | ????????????????????????# +?? | | ????????????????????????# #?? | | ????????????????????????# #?? | | ????????????????????????# #?? | | ??????????############### g #?? | | ??????????# @gmk ??? | | ??????????# =g ???? | | ??????????# % #?????? | | ??????????# """" """" """" !r"" #?????? | | ??????????# """" """" """" Y" #?????? | | ??????????# """" """" """" "" #?????# | | ??????????# % #?????? | | ??????????# #?????? | | ????????### ######+## | | ????????# + ## | | ????????# ## #? | | ????????# ##! #? """ | | ????????# ############# ## [ #?? """? | | ????????# #???????????#%##########?? ## ""?? | | ????????# #??????######+####???????? ? ? | | ????????# ######## [*= !#????????? #? ? | | ????????# # #????????? #??""" | | ????????# #! """ #?????????? #???""? | | #########^ %# """ #?????????? #?????? | | # # """ =+ """ #?????????? #?????? | | # ! # ^ """ # """ #???????????#????? | | # # """ # "T" """ #????????????????? | | # """ # """ # #???????????????? | | # """ # ###########???????????????? | | # """ + ! #?????????????????????????? | +----------------------------------------------------+ Best States ------------- Heat Dissipation 25 Energy Generation 10 Energy Capacity 250 Matter Stores 300 Matter Capacity 300 Sight Range 18 Terrain Scan Range 16 Terrain Scan Density 10 Evasion (%) 55 Recoil Reduction 2 Item Schematics ----------------- None Robot Schematics ------------------ None Fabricated ------------ Nothing Alien Tech Used ----------------- None Achievements -------------- None Challenges ------------ None Game ------ Seed RestorationSalvagingPick Manual? 0 Play Time 00:09:01 Cumulative 134.9 hours Start 2024.09.21 @ 00:30:41 End 2024.09.21 @ 00:37:11 Sessions 1 Manual Loads 0 Difficulty Rogue Special Mode None Game No. 183 Rogue 183 Adventurer 0 Explorer 0 Win Type - Total 1 Types 1/0/0/0/0/0/0/0/0 Lore% 46 Gallery% 60 Achievement% 47 Wizard Run 0 Options --------- Layout 0 ASCII 0 Keyboard 0 Movement Mouse Keybinds 1 Fullscreen 1 Font 18/TerminusBold Map View 76x50 Zoom Use 0% Tactical HUD 1 Map Filters NONE Filters NONE Steam 1 RUN: 7a6387bb-3a40-4f7c-84b8-d076817322ec